fUST/lending_fUST_20241231
["ID","MTS","AMOUNT","RATE_DAILY","PERIOD"]
[347241635,1735613442682,-500.0,0.00020788,3]
[347241636,1735613442691,-500.0,0.00020788,3]
[347241637,1735613442700,-709.16,0.00020788,3]
[347241638,1735613442709,-500.0,0.00020788,3]
[347241639,1735613442718,-824.25,0.00020788,3]
[347241642,1735613442804,-500.0,0.00020788,3]
[347241643,1735613442813,-1586.01,0.00020788,3]
[347241644,1735613442823,-500.0,0.00020788,3]
[347241645,1735613442834,-500.0,0.00020788,3]
[347241646,1735613442843,-500.0,0.00020788,3]
[347241647,1735613442852,-514.91,0.00020788,3]
[347241648,1735613442861,-581.23,0.00020788,3]
[347241649,1735613442871,-500.0,0.00020788,3]
[347241650,1735613442880,-946.98,0.00020789,3]
[347241651,1735613442889,-946.98,0.00020789,3]
[347241652,1735613442898,-4781.23,0.00020789,3]
[347241653,1735613442907,-723.11,0.00020789,3]
[347241654,1735613442916,-151.38723,0.00020789,2]
[347241655,1735613442925,-151.0,0.00020789,2]
[347241656,1735613442935,-500.0,0.0002079,3]
[347241657,1735613442945,-2923.87,0.0002079,3]
[347241658,1735613442955,-865.71,0.0002079,3]
[347241659,1735613442965,-151.0,0.00020791,2]
[347241661,1735613442974,-450.102748,0.00020791,2]
[347241662,1735613442983,-450.102748,0.00020791,2]
[347241663,1735613442992,-151.0,0.00020791,2]
[347241664,1735613443002,-151.0,0.00020791,2]
[347241666,1735613443011,-151.0,0.000208,3]
[347241668,1735613443020,-151.0,0.000208,4]
[347241670,1735613443030,-1490.74,0.00020821,3]
[347241672,1735613443039,-500.0,0.00020821,3]
[347241674,1735613443049,-213.7567436,0.00020841,2]
[347241676,1735613443058,-155.45,0.000209,31]
[347241677,1735613443068,-155.45,0.000209,31]
[347241678,1735613443077,-155.45,0.000209,31]
[347241679,1735613443086,-155.45,0.000209,31]
[347241681,1735613443096,-155.45,0.000209,31]
[347241683,1735613443105,-155.45,0.000209,31]
[347241685,1735613443116,-155.45,0.000209,31]
[347241687,1735613443126,-151.0,0.000209,4]
[347241689,1735613443135,-151.0,0.000209,2]
[347241690,1735613443144,-151.0,0.000209,2]
[347241692,1735613443153,-151.0,0.000209,2]
[347241694,1735613443163,-807.58981921,0.00020961,2]
[347241696,1735613443172,-160.56336997,0.00020965,2]
[347241698,1735613443181,-359.82527269,0.00021,5]
[347241700,1735613443190,-2000.76588103,0.00021,2]
[347241701,1735613443199,-151.0,0.00021,3]
[347241703,1735613443208,-151.0,0.00021,3]
[347241704,1735613443218,-155.9125425,0.00021041,2]
[347241705,1735613443227,-474.3071903,0.00021041,2]
[347241706,1735613443237,-946.98,0.00021048,3]
[347241707,1735613443246,-946.98,0.00021048,3]
[347241708,1735613443255,-368.816022,0.00021048,2]
[347241709,1735613443265,-151.0,0.00021048,2]
[347241710,1735613443274,-368.816022,0.00021048,2]
[347241711,1735613443284,-159.921893,0.00021048,2]
[347241712,1735613443294,-151.0,0.00021048,2]
[347241713,1735613443303,-865.71,0.00021048,3]
[347241714,1735613443316,-865.71,0.00021048,3]
[347241715,1735613443325,-865.71,0.00021048,3]
[347241716,1735613443335,-865.71,0.00021048,3]
[347241717,1735613443345,-865.71,0.00021048,3]
[347241718,1735613443354,-865.71,0.00021048,3]
[347241719,1735613443364,-865.71,0.00021048,3]
[347241720,1735613443373,-865.71,0.00021048,3]
[347241721,1735613443383,-865.71,0.00021048,3]
[347241722,1735613443392,-865.71,0.00021048,3]
[347241723,1735613443402,-865.71,0.00021048,3]
[347241724,1735613443412,-865.71,0.00021048,3]
[347241725,1735613443421,-865.71,0.00021048,3]
[347241726,1735613443430,-865.75,0.00021048,3]
[347241727,1735613443439,-1200.0,0.00021049,2]
[347241728,1735613443449,-151.070116,0.00021049,2]
[347241730,1735613443458,-151.0,0.00021049,2]
[347241731,1735613443467,-151.0,0.00021049,2]
[347241732,1735613443476,-151.0,0.00021049,2]
[347241733,1735613443485,-152.892615,0.00021049,2]
[347241734,1735613443495,-152.892615,0.00021049,2]
[347241735,1735613443504,-152.892615,0.00021049,2]
[347241736,1735613443513,-152.892615,0.00021049,2]
[347241737,1735613443522,-152.892615,0.00021049,2]
[347241738,1735613443531,-152.892615,0.00021049,2]
[347241739,1735613443541,-152.892615,0.00021049,2]
[347241740,1735613443550,-152.892615,0.00021049,2]
[347241741,1735613443561,-152.892615,0.00021049,2]
[347241742,1735613443571,-152.892615,0.00021049,2]
[347241743,1735613443580,-152.892615,0.00021049,2]
[347241744,1735613443589,-152.892615,0.00021049,2]
[347241745,1735613443599,-152.892615,0.00021049,2]
[347241746,1735613443608,-152.892615,0.00021049,2]
[347241747,1735613443617,-152.892615,0.00021049,2]
[347241748,1735613443627,-152.892615,0.00021049,2]
[347241749,1735613443637,-152.892615,0.00021049,2]
[347241750,1735613443647,-152.892615,0.00021049,2]
[347241751,1735613443656,-152.892615,0.00021049,2]
[347241752,1735613443666,-152.892619,0.00021049,2]
[347241753,1735613443675,-946.98,0.00021049,3]
[347241754,1735613443684,-946.98,0.00021049,3]
[347241755,1735613443694,-946.98,0.00021049,3]
[347241756,1735613443703,-946.98,0.00021049,3]
[347241757,1735613443713,-946.98,0.00021049,3]
[347241758,1735613443722,-946.98,0.00021049,3]
[347241759,1735613443732,-946.98,0.00021049,3]
[347241760,1735613443742,-946.98,0.00021049,3]
[347241761,1735613443753,-946.98,0.00021049,3]
[347241762,1735613443764,-946.98,0.00021049,3]
[347241763,1735613443773,-946.98,0.00021049,3]
[347241764,1735613443783,-946.98,0.00021049,3]
[347241765,1735613443792,-946.98658848,0.00021049,3]
[347241766,1735613443802,-2000.0,0.0002105,2]
[347241767,1735613443811,-151.0,0.0002105,2]
[347241768,1735613443820,-151.0,0.0002105,2]
[347241769,1735613443831,-175.218115,0.0002105,2]
[347241770,1735613443841,-175.218115,0.0002105,2]
[347241771,1735613443850,-152.512093,0.0002105,2]
[347241772,1735613443860,-151.0,0.0002105,2]
[347241773,1735613443869,-151.0,0.0002105,2]
[347241774,1735613443879,-200.66062527,0.00021053,10]
[347241775,1735613443888,-500.0,0.00021053,3]
[347241776,1735613443898,-500.0,0.00021053,3]
[347241777,1735613443907,-500.0,0.00021053,3]
[347241778,1735613443917,-500.0,0.00021053,3]
[347241779,1735613443926,-500.0,0.00021053,3]
[347241780,1735613443936,-500.0,0.00021053,3]
[347241781,1735613443945,-500.0,0.00021053,3]
[347241782,1735613443954,-455.85,0.00021053,3]
[347241783,1735613443963,-200.68294455,0.00021053,10]
[347241784,1735613443973,-200.28373753,0.00021053,10]
[347241785,1735613443982,-203.03035904,0.00021053,10]
[347241786,1735613443991,-202.29457603,0.00021053,10]
[347241787,1735613444000,-718.696225,0.00021054,2]
[347241788,1735613444010,-718.696225,0.00021054,2]
[347241789,1735613444019,-718.696225,0.00021054,2]
[347241790,1735613444028,-718.696225,0.00021054,2]
[347241791,1735613444037,-718.696225,0.00021054,2]
[347241792,1735613444046,-718.696225,0.00021054,2]
[347241793,1735613444055,-718.696225,0.00021054,2]
[347241794,1735613444065,-718.696219,0.00021054,2]
[347241795,1735613444074,-904.181394,0.00021054,2]
[347241796,1735613444083,-904.181394,0.00021054,2]
[347241797,1735613444092,-904.181394,0.00021054,2]
[347241798,1735613444101,-904.181394,0.00021054,2]
[347241799,1735613444111,-904.181394,0.00021054,2]
[347241800,1735613444120,-904.181394,0.00021054,2]
[347241801,1735613444130,-904.181394,0.00021054,2]
[347241802,1735613444139,-904.181394,0.00021054,2]
[347241803,1735613444148,-904.181394,0.00021054,2]
[347241804,1735613444157,-904.181394,0.00021054,2]
[347241805,1735613444166,-904.181394,0.00021054,2]
[347241806,1735613444175,-904.181394,0.00021054,2]
[347241807,1735613444185,-904.181394,0.00021054,2]
[347241808,1735613444194,-904.181394,0.00021054,2]
[347241809,1735613444203,-904.181394,0.00021054,2]
[347241810,1735613444212,-904.181394,0.00021054,2]
[347241811,1735613444222,-904.181394,0.00021054,2]
[347241812,1735613444231,-904.181394,0.00021054,2]
[347241813,1735613444240,-904.181394,0.00021054,2]
[347241814,1735613444249,-904.181394,0.00021054,2]
[347241815,1735613444258,-151.0,0.00021054,2]
[347241816,1735613444267,-151.0,0.00021054,2]
[347241817,1735613444276,-151.0,0.00021054,2]
[347241818,1735613444285,-151.0,0.00021054,2]
[347241819,1735613444294,-151.0,0.00021054,2]
[347241820,1735613444303,-155.346067,0.00021054,2]
[347241821,1735613444313,-151.0,0.00021054,2]
[347241822,1735613444323,-155.97504,0.00021054,2]
[347241823,1735613444332,-151.0,0.00021054,2]
[347241824,1735613444341,-151.0,0.00021054,2]
[347241825,1735613444350,-151.0,0.00021054,2]
[347241826,1735613444359,-151.272256,0.00021054,2]
[347241827,1735613444368,-175.218115,0.00021054,2]
[347241828,1735613444377,-175.218115,0.00021054,2]
[347241829,1735613444386,-151.0,0.00021054,2]
[347241830,1735613444395,-151.0,0.00021054,2]
[347241831,1735613444404,-151.0,0.00021054,2]
[347241832,1735613444413,-151.0,0.00021054,2]
[347241833,1735613444422,-151.0,0.00021054,2]
[347241834,1735613444430,-151.0,0.00021054,2]
[347241835,1735613444439,-167.974229,0.00021054,2]
[347241836,1735613444448,-3000.0,0.0002106,2]
[347241837,1735613444457,-500.0,0.0002106,3]
[347241838,1735613444467,-500.0,0.0002106,3]
[347241839,1735613444476,-550.32,0.0002106,3]
[347241840,1735613444485,-605.44,0.0002106,3]
[347241841,1735613444494,-151.0,0.0002106,2]
[347241842,1735613444503,-302.7662091,0.0002106,3]
[347241843,1735613444512,-660.19,0.0002106,3]
[347241844,1735613444522,-500.0,0.0002106,3]
[347241845,1735613444531,-450.102748,0.0002106,2]
[347241846,1735613444540,-450.102748,0.0002106,2]
[347241847,1735613444549,-151.0,0.0002106,2]
[347241848,1735613444558,-790.44,0.0002106,3]
[347241849,1735613444567,-900.46,0.0002106,3]
[347241850,1735613444577,-151.0,0.0002106,2]
[347241851,1735613444586,-908.43,0.0002106,3]
[347241852,1735613444595,-794.91,0.0002106,3]
[347241853,1735613444605,-368.816022,0.0002106,2]
[347241854,1735613444614,-248.682836,0.0002106,2]
[347241855,1735613444623,-368.816022,0.0002106,2]
[347241856,1735613444632,-500.0,0.0002106,3]
[347241857,1735613444642,-151.0,0.0002106,2]
[347241858,1735613444651,-2525.92,0.0002106,3]
[347241859,1735613444660,-500.0,0.0002106,3]
[347241860,1735613444669,-500.0,0.0002106,3]
[347241861,1735613444678,-500.0,0.0002106,3]
[347241862,1735613444688,-500.0,0.0002106,3]
[347241863,1735613444698,-151.0,0.0002106,2]
[347241864,1735613444707,-927.9,0.0002106,3]
[347241865,1735613444716,-3546.96,0.0002106,3]
[347241866,1735613444725,-576.65,0.0002106,3]
[347241867,1735613444735,-719.15,0.0002106,3]
[347241868,1735613444818,-500.0,0.0002106,3]
[347241869,1735613444830,-854.99,0.0002106,3]
[347241870,1735613444840,-151.0,0.0002106,2]
[347241871,1735613444850,-1445.3,0.0002106,3]
[347241872,1735613444859,-3531.73,0.0002106,3]
[347241873,1735613444868,-151.203835,0.0002106,2]
[347241874,1735613444877,-151.0,0.00021061,2]
[347241875,1735613444887,-151.0,0.00021061,2]
[347241876,1735613444896,-151.0,0.00021061,2]
[347241877,1735613444906,-196.196838,0.00021061,2]
[347241878,1735613444915,-151.0,0.00021061,2]
[347241879,1735613444925,-151.0,0.00021061,2]
[347241880,1735613444935,-151.0,0.00021061,2]
[347241881,1735613444944,-151.0,0.00021061,2]
[347241882,1735613444954,-151.0,0.00021061,2]
[347241883,1735613444963,-268.045002,0.00021061,2]
[347241884,1735613444973,-175.218115,0.00021061,2]
[347241885,1735613444983,-175.218115,0.00021061,2]
[347241886,1735613444992,-175.218115,0.00021061,2]
[347241887,1735613445001,-175.218115,0.00021061,2]
[347241888,1735613445011,-175.218115,0.00021061,2]
[347241889,1735613445020,-175.218115,0.00021061,2]
[347241890,1735613445029,-175.218115,0.00021061,2]
[347241891,1735613445038,-175.218115,0.00021061,2]
[347241892,1735613445047,-175.218115,0.00021061,2]
[347241893,1735613445057,-175.218115,0.00021061,2]
[347241894,1735613445066,-175.218115,0.00021061,2]
[347241895,1735613445075,-175.218115,0.00021061,2]
[347241896,1735613445084,-175.218115,0.00021061,2]
[347241897,1735613445094,-175.218115,0.00021061,2]
[347241898,1735613445104,-175.218115,0.00021061,2]
[347241899,1735613445115,-175.218119,0.00021061,2]
[347241900,1735613445125,-450.102748,0.00021061,2]
[347241901,1735613445135,-450.102748,0.00021061,2]
[347241902,1735613445144,-450.102748,0.00021061,2]
[347241903,1735613445154,-450.102748,0.00021061,2]
[347241904,1735613445163,-450.102748,0.00021061,2]
[347241905,1735613445173,-450.102748,0.00021061,2]
[347241906,1735613445182,-450.102748,0.00021061,2]
[347241907,1735613445191,-450.102748,0.00021061,2]
[347241908,1735613445201,-450.102748,0.00021061,2]
[347241909,1735613445210,-450.102748,0.00021061,2]
[347241910,1735613445219,-450.102748,0.00021061,2]
[347241911,1735613445229,-450.102748,0.00021061,2]
[347241912,1735613445238,-450.102748,0.00021061,2]
[347241913,1735613445247,-450.102748,0.00021061,2]
[347241914,1735613445256,-450.102748,0.00021061,2]
[347241915,1735613445265,-411.46414607,0.00021061,2]
[347241916,1735613445310,-38.63860893,0.00021061,2]
[347241917,1735613445320,-152.661602,0.00021061,2]
[347241918,1735613445330,-66.59535531,0.00021061,3]
[347241919,1735613445344,-433.40464469,0.00021061,3]
[347241920,1735613445353,-151.0,0.00021061,2]
[347241921,1735613445363,-151.0,0.00021061,2]
[347241922,1735613445372,-151.0,0.00021061,2]
[347241923,1735613445381,-154.346482,0.00021061,2]
[347241924,1735613445391,-368.816022,0.00021061,2]
[347241925,1735613445401,-368.816022,0.00021061,2]
[347241926,1735613445410,-368.816022,0.00021061,2]
[347241927,1735613445420,-368.816022,0.00021061,2]
[347241928,1735613445430,-368.816022,0.00021061,2]
[347241929,1735613445440,-368.816022,0.00021061,2]
[347241930,1735613445450,-368.816022,0.00021061,2]
[347241931,1735613445459,-368.816022,0.00021061,2]
[347241932,1735613445469,-368.816022,0.00021061,2]
[347241933,1735613445478,-368.816022,0.00021061,2]
[347241934,1735613445488,-368.816022,0.00021061,2]
[347241935,1735613445497,-368.816022,0.00021061,2]
[347241936,1735613445506,-368.816022,0.00021061,2]
[347241937,1735613445516,-368.816032,0.00021061,2]
[347241938,1735613445526,-151.0,0.00021061,2]
[347241939,1735613445536,-151.0,0.00021061,2]
[347241940,1735613445545,-151.0,0.00021061,2]
[347241941,1735613445554,-249.614133,0.00021061,2]
[347241942,1735613445565,-151.0,0.00021061,2]
[347241943,1735613445576,-259.305731,0.00021061,2]
[347241944,1735613445585,-151.0,0.00021061,2]
[347241945,1735613445595,-151.0,0.00021061,2]
[347241946,1735613445605,-153.1008,0.00021061,2]
[347241947,1735613445615,-153.733097,0.00021061,2]
[347241948,1735613445626,-151.0,0.00021061,2]
[347241949,1735613445636,-151.0,0.00021061,2]
[347241950,1735613445647,-151.0,0.00021061,2]
[347241951,1735613445657,-151.0,0.00021061,2]
[347241952,1735613445668,-151.0,0.00021061,2]
[347241953,1735613445678,-151.0,0.00021061,2]
[347241954,1735613445688,-151.0,0.00021061,2]
[347241955,1735613445699,-151.0,0.00021061,2]
[347241956,1735613445708,-151.0,0.00021061,2]
[347241957,1735613445719,-230.236348,0.00021061,2]
[347241958,1735613445729,-151.0,0.00021061,2]
[347241959,1735613445738,-151.0,0.00021061,2]
[347241960,1735613445748,-151.0,0.00021061,2]
[347241961,1735613445764,-151.0,0.00021061,2]
[347241962,1735613445774,-151.0,0.00021061,2]
[347241963,1735613445783,-151.0,0.00021061,2]
[347241964,1735613445794,-151.0,0.00021061,2]
[347241965,1735613445804,-151.0,0.00021061,2]
[347241966,1735613445814,-151.0,0.00021061,2]
[347241967,1735613445823,-247.209918,0.00021061,2]
[347241968,1735613445834,-151.0,0.00021061,2]
[347241969,1735613445843,-151.0,0.00021061,2]
[347241970,1735613445853,-539.22,0.00021062,3]
[347241971,1735613445862,-500.0,0.00021062,3]
[347241972,1735613445871,-771.3,0.00021062,3]
[347241973,1735613445880,-714.78,0.00021062,3]
[347241974,1735613445892,-500.0,0.00021062,3]
[347241975,1735613445902,-500.0,0.00021062,3]
[347241976,1735613445912,-709.16,0.00021062,3]
[347241977,1735613445923,-500.0,0.00021062,3]
[347241978,1735613445931,-824.25,0.00021062,3]
[347241979,1735613445941,-500.0,0.00021062,3]
[347241980,1735613445951,-1586.01,0.00021062,3]
[347241981,1735613445960,-500.0,0.00021062,3]
[347241982,1735613445970,-500.0,0.00021062,3]
[347241983,1735613445979,-375.91051678,0.00021062,3]
[347241984,1735613445989,-514.91,0.00021062,3]
[347241985,1735613445998,-581.23,0.00021062,3]
[347241986,1735613446007,-500.0,0.00021062,3]
[347241987,1735613446017,-4781.23,0.00021063,3]
[347241988,1735613446026,-723.11,0.00021063,3]
[347241989,1735613446035,-2923.87,0.00021064,3]
[347241990,1735613446044,-500.0,0.00021064,2]
[347241991,1735613446053,-348.53396508,0.00021064,2]
[347241992,1735613446062,-1019.97460282,0.00021065,2]
[347241993,1735613446075,-9973.29864363,0.00021065,2]
[347241994,1735613446084,-93009.69480083,0.00021065,2]
[347241995,1735613446094,-151.0,0.00021065,2]
[347241996,1735613446103,-151.0,0.00021065,2]
[347241997,1735613446113,-151.0,0.00021065,2]
[347241998,1735613446123,-151.0,0.00021065,2]
[347241999,1735613446133,-151.0,0.00021065,2]
[347242000,1735613446142,-151.0,0.00021065,2]
[347242001,1735613446151,-473773.63436344,0.00021065,10]
[347242002,1735613446233,-521.0,0.00021065,10]
[347242007,1735613446589,-394.0,0.00020874,2]
[347242009,1735613446599,-3846.87851367,0.00021065,10]
[347242010,1735613446609,-135538.93600624,0.00021065,10]
[347242011,1735613446620,-54349.200095,0.00021065,10]
[347242012,1735613446631,-17543.83294124,0.00021065,10]
[347242013,1735613446643,-4368.79223339,0.00021065,10]
[347242040,1735613506270,153.35,0.00025,120]
[347242044,1735614536076,-181.388798,0.00013973,2]
[347242045,1735614536105,-151.17105757,0.00018493,2]
[347242046,1735614536136,-564.72,0.00018871,2]
[347242047,1735614536168,-138.12109009,0.00018944,2]
[347242048,1735614560174,-300.0,0.00018944,2]
[347242049,1735614560196,-5013.18104453,0.00018945,2]
[347242050,1735614560222,-5000.0,0.00018945,2]
[347242051,1735614560243,-5000.0,0.00018945,2]
[347242052,1735614560265,-3268.37939241,0.00018945,2]
[347242053,1735614565115,-1731.62060759,0.00018945,2]
[347242054,1735614565134,-464.42447581,0.00018945,2]
[347242100,1735614632895,-1310.70094149,0.00018945,2]
[347242161,1735614638476,-3224.8745827,0.00018945,2]
[347242162,1735614638486,-182.922,0.00019177,2]
[347242163,1735614638496,-300.0,0.00019177,2]
[347242164,1735614638505,-502.86732867,0.00019178,2]
[347242165,1735614638514,-500.0,0.00019178,2]
[347242166,1735614638524,-500.0,0.00019178,2]
[347242167,1735614638535,-500.0,0.00019178,2]
[347242168,1735614638544,-500.0,0.00019178,2]
[347242169,1735614638554,-500.0,0.00019178,2]
[347242170,1735614638563,-1090.11,0.00019178,2]
[347242171,1735614638572,-500.0,0.00019178,2]
[347242172,1735614638581,-500.0,0.00019178,2]
[347242173,1735614638591,-829.16,0.00019178,2]
[347242174,1735614638600,-967.92,0.00019178,2]
[347242175,1735614638610,-500.0,0.00019178,2]
[347242176,1735614638619,-500.0,0.00019178,2]
[347242177,1735614638629,-561.41,0.00019178,2]
[347242178,1735614638638,-792.16,0.00019178,2]
[347242179,1735614638648,-500.0,0.00019178,2]
[347242180,1735614638657,-500.0,0.00019178,2]
[347242181,1735614638666,-500.0,0.00019178,2]
[347242182,1735614638675,-500.0,0.00019178,2]
[347242183,1735614638685,-500.0,0.00019178,2]
[347242184,1735614638694,-1201.43,0.00019178,2]
[347242185,1735614638704,-500.0,0.00019178,2]
[347242186,1735614638713,-502.53205806,0.00019178,2]
[347242187,1735614638723,-500.0,0.00019178,2]
[347242188,1735614638732,-564.43,0.00019178,2]
[347242189,1735614638741,-1727.11,0.00019178,2]
[347242190,1735614638751,-500.0,0.00019178,2]
[347242191,1735614638761,-625.76,0.00019178,2]
[347242192,1735614638771,-891.68,0.00019178,2]
[347242193,1735614638780,-500.0,0.00019178,2]
[347242194,1735614638789,-926.79,0.00019178,2]
[347242195,1735614638799,-500.0,0.00019178,2]
[347242196,1735614638809,-563.98,0.00019178,2]
[347242197,1735614638818,-817.27,0.00019178,2]
[347242198,1735614638828,-500.0,0.00019178,2]
[347242199,1735614638837,-605.41082675,0.00019178,2]
[347242200,1735614638847,-500.0,0.00019178,2]
[347242201,1735614638856,-3037.19,0.00019178,2]
[347242202,1735614638866,-500.0,0.00019178,2]
[347242203,1735614638875,-105.93031227,0.00019178,2]
[347242204,1735614638887,-2979.83968773,0.00019178,2]
[347242205,1735614638896,-1000.0,0.00019178,2]
[347242206,1735614638906,-500.0,0.00019178,2]
[347242207,1735614638915,-500.0,0.00019178,2]
[347242208,1735614638925,-500.0,0.00019178,2]
[347242209,1735614638934,-500.0,0.00019178,2]
[347242210,1735614638944,-500.0,0.00019178,2]
[347242211,1735614638953,-506.20592668,0.00019178,2]
[347242212,1735614638962,-1299.91,0.00019178,2]
[347242213,1735614638971,-500.0,0.00019178,2]
[347242214,1735614638981,-1226.09,0.00019178,2]
[347242215,1735614638990,-2808.01,0.00019178,2]
[347242216,1735614638999,-737.85,0.00019178,2]
[347242217,1735614639008,-506.76051631,0.00019178,2]
[347242218,1735614639017,-704.53,0.00019178,2]
[347242219,1735614639028,-500.0,0.00019178,2]
[347242220,1735614639037,-500.0,0.00019178,2]
[347242221,1735614639046,-1195.12,0.00019178,2]
[347242222,1735614639055,-500.0,0.00019178,2]
[347242223,1735614639065,-1016.58,0.00019178,2]
[347242224,1735614639074,-500.0,0.00019178,2]
[347242225,1735614639083,-168.51997,0.00019178,2]
[347242226,1735614639092,-152.77,0.00019178,2]
[347242227,1735614639104,-26027.15,0.00019451,3]
[347242228,1735614639113,-500.0,0.00019451,3]
[347242229,1735614639123,-500.0,0.00019452,3]
[347242230,1735614639132,-500.0,0.00019452,3]
[347242231,1735614639143,-500.0,0.00019452,3]
[347242232,1735614639152,-1090.11,0.00019452,3]
[347242233,1735614639161,-500.0,0.00019452,3]
[347242234,1735614639170,-500.0,0.00019452,3]
[347242235,1735614639180,-829.16,0.00019452,3]
[347242236,1735614639190,-967.92,0.00019452,3]
[347242237,1735614639199,-500.0,0.00019452,3]
[347242238,1735614639208,-500.0,0.00019452,3]
[347242239,1735614639217,-561.41,0.00019452,3]
[347242240,1735614639227,-792.16,0.00019452,3]
[347242241,1735614639237,-500.0,0.00019452,3]
[347242242,1735614639247,-524.4524063,0.00019452,3]
[347242243,1735614639256,-503.35506196,0.00019452,3]
[347242244,1735614639266,-500.0,0.00019452,3]
[347242245,1735614639277,-543.1306439,0.00019452,3]
[347242246,1735614639286,-1201.43,0.00019452,3]
[347242247,1735614639295,-500.0,0.00019452,3]
[347242248,1735614639304,-245.0017611,0.00019452,3]
[347242249,1735614639314,-564.43,0.00019452,3]
[347242250,1735614639323,-1727.11,0.00019452,3]
[347242251,1735614639332,-625.76,0.00019452,3]
[347242252,1735614639342,-891.68,0.00019452,3]
[347242253,1735614639351,-926.79,0.00019452,3]
[347242254,1735614639360,-387.21,0.00019452,3]
[347242255,1735614639370,-563.98,0.00019452,3]
[347242256,1735614639379,-817.27,0.00019452,3]
[347242257,1735614639388,-500.0,0.00019452,3]
[347242258,1735614639398,-3037.19,0.00019452,3]
[347242259,1735614639407,-500.0,0.00019452,3]
[347242260,1735614639417,-3085.77,0.00019452,3]
[347242261,1735614639426,-1000.0,0.00019452,2]
[347242262,1735614639435,-500.0,0.00019452,3]
[347242263,1735614639444,-500.0,0.00019452,3]
[347242264,1735614639454,-500.0,0.00019452,3]
[347242265,1735614639464,-500.0,0.00019452,3]
[347242266,1735614639473,-500.0,0.00019452,3]
[347242267,1735614639482,-1299.91,0.00019452,3]
[347242268,1735614639492,-500.0,0.00019452,3]
[347242269,1735614639502,-1226.09,0.00019452,3]
[347242270,1735614639511,-2808.01,0.00019452,3]
[347242271,1735614639521,-737.85,0.00019452,3]
[347242272,1735614639531,-704.53,0.00019452,3]
[347242273,1735614639541,-500.0,0.00019452,3]
[347242274,1735614639551,-500.0,0.00019452,3]
[347242275,1735614639560,-1195.12,0.00019452,3]
[347242276,1735614639570,-474.86043228,0.00019452,3]
[347242277,1735614639580,-1016.58,0.00019452,3]
[347242278,1735614639590,-26027.15,0.00019725,3]
[347242279,1735614639600,-500.0,0.00019725,3]
[347242280,1735614639610,-500.0,0.00019726,3]
[347242281,1735614639619,-500.0,0.00019726,3]
[347242282,1735614639630,-1090.11,0.00019726,3]
[347242283,1735614639639,-500.0,0.00019726,3]
[347242284,1735614639649,-500.0,0.00019726,3]
[347242285,1735614639658,-829.16,0.00019726,3]
[347242286,1735614639667,-967.92,0.00019726,3]
[347242287,1735614639676,-500.0,0.00019726,3]
[347242288,1735614639775,-500.0,0.00019726,3]
[347242289,1735614639784,-561.41,0.00019726,3]
[347242290,1735614639794,-792.16,0.00019726,3]
[347242291,1735614639804,-500.0,0.00019726,3]
[347242292,1735614639814,-500.0,0.00019726,3]
[347242293,1735614639823,-1201.43,0.00019726,3]
[347242294,1735614639833,-500.0,0.00019726,3]